Cogmind - Beta 9.1 @@@ ROGUE MODE // 2019.10.30 @ 12:42:16 Player: MrPainting Result: Self-destructed Performance ------------- Evolutions (3) 1500 Regions Visited (5) 1000 Robots Destroyed (54) 270 Value Destroyed (1651) 1651 Prototype IDs (2) 40 Alien Tech Used (0) 0 Bonus (0) 0 TOTAL SCORE: 4461 Bonus ------- None Cogmind --------- Core Integrity 564/700 Matter 16/300 Energy 300/300 System Corruption 3% Temperature Cool (0) Location -7/Factory Parts ------- Power (1) Enhanced Nuclear Core Propulsion (4) Utility (6) High-capacity Storage Unit High-capacity Storage Unit Enhanced Optical Array Long-range Sensor Array Advanced Signal Interpreter Advanced Targeting Computer Weapon (2) Advanced Assault Cannon Advanced Assault Cannon Inventory (20) Enhanced Nuclear Core Enhanced Nuclear Core Enhanced Nuclear Core High-capacity Matter Pod (0) Advanced Targeting Computer Energy Filter Weapon Cycler Propulsion Shielding Heavy Armor Plating Reactive Plating Hacking Suite Hacking Suite Dynamic Insulation System Long-range Tractor Beam Arc Projector Arc Projector Advanced Assault Cannon Advanced Assault Cannon Peak State ------------ Power Enhanced Nuclear Core Propulsion Armored Treads Advanced Treads Armored Huge Wheel Utility High-capacity Storage Unit High-capacity Storage Unit Enhanced Optical Array Advanced Targeting Computer Advanced Targeting Computer Improved ECM Suite Weapon Advanced Assault Cannon Advanced Assault Cannon Inventory Enhanced Nuclear Core Enhanced Nuclear Core Enhanced Nuclear Core High-capacity Matter Pod Long-range Sensor Array Advanced Targeting Computer Energy Filter Weapon Cycler Propulsion Shielding Heavy Armor Plating Reactive Plating Hacking Suite Hacking Suite Dynamic Insulation System Long-range Tractor Beam Arc Projector Arc Projector Advanced Assault Cannon Advanced Assault Cannon [Rating: 49] Favorites ----------- Power Ion Engine Engine Ion Engine Power Core Enhanced Nuclear Core Propulsion Improved Aluminum Leg Treads Light Treads Leg Improved Aluminum Leg Wheel Armored Huge Wheel Hover Unit Aerolev Unit Utility High-capacity Storage Unit Device Improved ECM Suite Storage High-capacity Storage Unit Processor Advanced Targeting Computer Weapon Advanced Assault Cannon Energy Gun Beam Rifle Energy Cannon Improved EM Pulse Cannon Ballistic Gun Heavy Assault Rifle Ballistic Cannon Advanced Assault Cannon Launcher Rocket Launcher Special Weapon Mining Laser Build | -11 -10 -9 -9 -8 -7 ------- Run | Scr Mat Mat Min Mat Fac Slots Evolved 6 | . . 2 . 2 2 Power . | . . . . . . Propulsion 2 | . . 2 . . . Utility 4 | . . . . 2 2 Weapon . | . . . . . . Parts Attached 60 | 5 5 4 10 13 23 Power 8 | 1 . 1 2 1 3 Engine 6 | 1 . 1 2 1 1 Core 2 | . . . . . 2 Reactor . | . . . . . . Propulsion 16 | 2 . 1 4 3 6 Treads 5 | . . 1 . . 4 Leg 9 | 2 . . 4 3 . Wheel 1 | . . . . . 1 Hover 1 | . . . . . 1 Flight . | . . . . . . Utility 15 | . 3 1 . 2 9 Device 4 | . 1 . . . 3 Storage 5 | . 1 1 . 1 2 Processor 6 | . 1 . . 1 4 Hackware . | . . . . . . Protection . | . . . . . . Artifact . | . . . . . . Weapon 21 | 2 2 1 4 7 5 Energy Gun 5 | 1 2 1 1 . . Energy Cannon 2 | . . . . . 2 Ballistic Gun 3 | 1 . . 1 1 . Ballistic Cannon 3 | . . . . . 3 Launcher 7 | . . . 1 6 . Special Weapon 1 | . . . 1 . . Impact Weapon . | . . . . . . Slashing Weapon . | . . . . . . Piercing Weapon . | . . . . . . Special Melee Weapon . | . . . . . . Unidentified Prototypes 2 | . . . . . 2 Parts Lost 18 | . . . 11 3 4 Power 2 | . . . 2 . . Propulsion 10 | . . . 6 1 3 Utility 1 | . . . . . 1 Weapon 5 | . . . 3 2 . Highest Loss Streak 4 | . . . 4 2 2 Average Slot Usage (%) 82 | . 96 85 84 69 84 Engine 6 | . 14 11 8 7 3 Core 1 | . . . . . 3 Treads 7 | . . 8 8 . 9 Leg 13 | . 28 22 24 18 5 Wheel 1 | . . . . . 3 Device 3 | . 6 3 . . 5 Storage 13 | . 6 7 11 17 15 Processor 16 | . 13 11 11 8 21 Energy Gun 5 | . 23 22 12 . . Energy Cannon 2 | . . . . . 5 Ballistic Gun 2 | . 2 . 8 1 . Ballistic Cannon 4 | . . . . . 8 Launcher 2 | . . . . 15 . Naked Turns . | . . . . . . Heaviest Build 90 | 9 15 27 29 47 90 Greatest Support 62 | 20 20 20 33 39 62 Greatest Overweight (x) 9 | 2 . 1 9 2 4 Average Overweight (x) 1 | . . . . . 2 Largest Inventory Capacity 24 | 4 6 10 10 16 24 Average Capacity 15 | 4 4 8 10 15 19 Most Carried 20 | 2 6 7 9 16 20 Average Carried 13 | 1 3 5 6 13 18 Final Capacity 20 | 4 4 10 10 16 20 Final Carried 19 | 2 4 6 9 13 19 Class Distribution -------------------- 43% | Mutant 40% | Hauler-Mutant 11% | Scavenger-Mutant 4% | Hauler-Skirmisher Dominant Class ---------------- Mutant | -10/Materials Mutant | -9/Materials Scavenger-Mutant | -9/Mines Mutant | -8/Materials Hauler-Mutant | -7/Factory Resources | -11 -10 -9 -9 -8 -7 ----------- Run | Scr Mat Mat Min Mat Fac Matter Collected 1114 | 207 89 44 112 156 506 Remotely . | . . . . . . Salvage Created 1582 | . 207 181 388 156 650 Parts 90 | . 7 15 26 3 39 Haulers Intercepted 3 | . . 1 . . 2 Recyclers Shooed . | . . . . . . Parts Field Recycled . | . . . . . . Retrieved Matter . | . . . . . . Parts Self-Destructed . | . . . . . . Prevented . | . . . . . . Kills | -11 -10 -9 -9 -8 -7 ------- Run | Scr Mat Mat Min Mat Fac Combat Hostiles Destroyed 39 | . 5 4 13 5 12 Guns 19 | . 5 4 10 . . Cannons 9 | . . . . . 9 AOE 11 | . . . 3 5 3 Classes Destroyed 12 | . 1 3 3 2 3 Worker 3 | . . . . . 3 Builder 3 | . . . . 1 2 Tunneler 2 | . . . 2 . . Hauler 3 | . . 1 . . 2 Recycler 3 | . . . . 1 2 Watcher 1 | . . . . . 1 Swarmer 6 | . . 2 4 . . Grunt 21 | . 5 . 6 4 6 Duelist 1 | . . . 1 . . Sentry 6 | . . 2 . 1 3 Programmer 3 | . . . . . 3 Assembled 2 | . . . 2 . . Best Kill Streak 6 | . 3 2 5 6 5 Combat Bots Only 4 | . 3 2 4 4 3 Max Kills in Single Turn 4 | . 2 1 2 2 4 Gunslinging 1 | . 1 . . . . Exploded 2 | . . . 2 2 2 Melee . | . . . . . . Uniques/NPCs Destroyed . | . . . . . . Combat | -11 -10 -9 -9 -8 -7 -------- Run | Scr Mat Mat Min Mat Fac Damage Taken 3155 | . 90 248 1004 443 1370 Core 492 | . 12 25 185 134 136 Absorbed by Shields . | . . . . . . Core Remaining (%) 79 | 100 95 . 47 75 . Volleys Fired 103 | . 8 15 35 11 34 Largest 2 | . 2 2 2 2 2 Hottest 138 | . 112 112 112 66 138 Shots Fired 193 | . 16 30 61 20 66 Gun 102 | . 16 30 56 . . Cannon 66 | . . . . . 66 Launcher 22 | . . . 2 20 . Special 3 | . . . 3 . . Kinetic 87 | . . . 25 . 62 Thermal 80 | . 16 30 34 . . Explosive 21 | . . . 2 19 . Electromagnetic 5 | . . . . 1 4 Robot Hit Streak 13 | . 8 12 11 7 13 Robot Miss Streak 2 | . 2 1 2 2 2 Penetration Max . | . . . . . . Secondary Targets 5 | . 2 . 3 . . Max Gunslinging Chain 1 | . 1 . 1 . . Shots Hit Robots 133 | . 11 23 42 11 46 Core Hits 85 | . 6 7 23 22 27 Critical Hits 1 | . . . . . 1 Critical Kills . | . . . . . . Critical Parts Destroyed . | . . . . . . Melee Attacks . | . . . . . . Impact . | . . . . . . Slashing . | . . . . . . Piercing . | . . . . . . Sneak Attacks . | . . . . . . Combat Hostiles . | . . . . . . Follow-up Attacks . | . . . . . . Damage Inflicted 4954 | . 188 333 923 1096 2414 Guns 1149 | . 188 333 628 . . Cannons 1246 | . . . . . 1246 Explosions 2535 | . . . 271 1096 1168 Melee . | . . . . . . Ramming . | . . . . . . Kinetic 1392 | . . . 254 . 1138 Thermal 2119 | . 188 333 398 32 1168 Explosive 1311 | . . . 271 1040 . Electromagnetic 132 | . . . . 24 108 Impact . | . . . . . . Slashing . | . . . . . . Piercing . | . . . . . . Highest Corruption 3 | . . . . . 3 Average Corruption 1 | . . . . . 1 Corruption Purged . | . . . . . . Effects 9 | . . . . . 9 Message Errors 4 | . . . . . 4 Heat Flow Errors 3 | . . . . . 3 Data Loss (minor) 1 | . . . . . 1 Targeting Errors 1 | . . . . . 1 Overload Shots . | . . . . . . Overflow Damage 288 | . . . 2 33 253 Projectiles 25 | . . . . . 25 Explosions 263 | . . . 2 33 228 Melee . | . . . . . . Knockbacks 12 | . . . . . 12 Impact . | . . . . . . Kinetic 12 | . . . . . 12 Secondary . | . . . . . . Self-Inflicted Damage 750 | . . . 31 77 642 Shots 13 | . . . 2 3 8 Rammed . | . . . . . . Targets Rammed . | . . . . . . Kicked . | . . . . . . Crushed . | . . . . . . Highest Temperature 234 | . 234 219 153 27 230 Average Temperature 61 | . 123 77 47 14 56 Received Heat Transfer 894 | . 48 45 375 162 264 Siege Activations . | . . . . . . Robots Corrupted . | . . . . . . Combat Hostiles . | . . . . . . Parts Fried . | . . . . . . Impact Corruptions . | . . . . . . Robots Melted . | . . . . . . Combat Hostiles . | . . . . . . Parts Melted 7 | . . 4 3 . . Heat Transferred 3094 | . 481 851 1012 50 700 Parts Sabotaged . | . . . . . . Parts Stolen . | . . . . . . Parts Stripped . | . . . . . . Power Chain Reactions 2 | . . . . 2 . Missiles Intercepted . | . . . . . . Alert | -11 -10 -9 -9 -8 -7 ------- Run | Scr Mat Mat Min Mat Fac Peak Influence 321 | . 120 211 180 142 321 Average Influence 89 | . 17 131 121 67 88 Maximum Alert Level 1 | . . 1 . . 1 Low Security (%) 95 | . . . . . . Level 1 4 | . . . . . . Level 2 . | . . . . . . Level 3 . | . . . . . . Level 4 . | . . . . . . Level 5 . | . . . . . . High Security . | . . . . . . Max Security . | . . . . . . Squads Dispatched 8 | . 2 . . 1 5 Investigation 3 | . 2 . . . 1 Extermination 3 | . . . . . 3 Reinforcement 2 | . . . . 1 1 Assault . | . . . . . . Garrison . | . . . . . . Intercept . | . . . . . . Construction Impeded 1 | . . . . 1 . Haulers Reinforced . | . . . . . . Stealth | -11 -10 -9 -9 -8 -7 --------- Run | Scr Mat Mat Min Mat Fac Distress Signals 1 | . . 1 . . . Communications Jammed . | . . . . . . Distress Signals . | . . . . . . Times Spotted 59 | . 6 6 21 7 19 Peak Tracking Total 6 | . 3 4 5 4 6 Tactical Retreats 3 | . . 1 1 1 . Traps | -11 -10 -9 -9 -8 -7 ------- Run | Scr Mat Mat Min Mat Fac Traps Triggered 4 | . 2 . . 1 1 Indirectly . | . . . . . . Trap Hack Attempts . | . . . . . . Triggered . | . . . . . . Disarmed . | . . . . . . Reprogrammed . | . . . . . . Reused . | . . . . . . Traps Extracted . | . . . . . . Installed . | . . . . . . Triggered . | . . . . . . Machines | -11 -10 -9 -9 -8 -7 ---------- Run | Scr Mat Mat Min Mat Fac Machines Disabled 11 | . . . . 2 9 Max in Single Turn 6 | . . . . 1 6 Machines Sabotaged . | . . . . . . Garrisons Compromised . | . . . . . . Overloaded Fab Kills . | . . . . . . Fab Network Shutdowns . | . . . . . . Hacking | -11 -10 -9 -9 -8 -7 --------- Run | Scr Mat Mat Min Mat Fac Machines Accessed 6 | . . 2 . 2 2 Terminals 5 | . . 2 . 2 1 Fabricators . | . . . . . . Repair Stations . | . . . . . . Recycling Units . | . . . . . . Scanalyzers . | . . . . . . Garrison Access 1 | . . . . . 1 Total Hacks 17 | . . 5 . 6 6 Successful 8 | . . 2 . 3 3 Failed 9 | . . 3 . 3 3 Catastrophic 2 | . . 1 . . 1 Database Lockouts . | . . . . . . Manual 14 | . . 5 . 6 3 Terminals 15 | . . 5 . 6 4 Fabricators . | . . . . . . Repair Stations . | . . . . . . Recycling Units . | . . . . . . Scanalyzers . | . . . . . . Garrison Access 2 | . . . . . 2 Terminal Hacks 1 | . . . . . 1 Surveillance Status 1 | . . . . . 1 Fabricator Hacks . | . . . . . . Repair Station Hacks . | . . . . . . Recycling Unit Hacks . | . . . . . . Scanalyzer . | . . . . . . Garrison Access Hacks . | . . . . . . Unauthorized Hacks 15 | . . 4 . 6 5 Terminals 7 | . . 2 . 3 2 Track 2 | . . . . 1 1 Botnet 5 | . . 2 . 2 1 Fabricators . | . . . . . . Repair Stations . | . . . . . . Recycling Units . | . . . . . . Scanalyzers . | . . . . . . Garrison Access . | . . . . . . Data Cores Recovered . | . . . . . . Used . | . . . . . . Hacking Detections 6 | . . 2 . 2 2 Full Trace Events 2 | . . . . 1 1 Feedback Events 1 | . . . . . 1 Corruption 1 | . . . . . 1 Feedback Blocked . | . . . . . . Robot Schematics Acquired . | . . . . . . Robots Built . | . . . . . . Matter . | . . . . . . Time . | . . . . . . Total Robot Build Rating . | . . . . . . Part Schematics Acquired . | . . . . . . Parts Built . | . . . . . . Matter . | . . . . . . Time . | . . . . . . Total Part Build Rating . | . . . . . . Parts Repaired . | . . . . . . Time . | . . . . . . Parts Recycled . | . . . . . . Recycled Matter . | . . . . . . Retrieved Matter . | . . . . . . Retrieved Components . | . . . . . . Parts Scanalyzed . | . . . . . . Part Schematics Acquired . | . . . . . . Parts Damaged . | . . . . . . Bothacking | -11 -10 -9 -9 -8 -7 ------------ Run | Scr Mat Mat Min Mat Fac Used RIF Installer . | . . . . . . Robots Hacked . | . . . . . . Non-combat . | . . . . . . Combat . | . . . . . . Robot Hacks Applied . | . . . . . . Relay Couplers Released . | . . . . . . Robots Rewired . | . . . . . . Allies Hacked . | . . . . . . Hacks Repelled . | . . . . . . Allies | -11 -10 -9 -9 -8 -7 -------- Run | Scr Mat Mat Min Mat Fac Total Allies 1 | . . . 1 . . Largest Group 1 | . . . 1 . . Highest-Rated Group 31 | . . . 31 . . Highest-Rated Ally 31 | . . . 31 . . Total Orders . | . . . . . . Ally Attacks 4 | . . . 4 . . Total Damage 41 | . . . 41 . . Kills . | . . . . . . Allies Corrupted . | . . . . . . Allies Melted . | . . . . . . Intel | -11 -10 -9 -9 -8 -7 ------- Run | Scr Mat Mat Min Mat Fac Robot Analysis Total . | . . . . . . Derelict Logs Recovered 1 | . . . 1 . . Drone Launches . | . . . . . . Drone Recoveries . | . . . . . . Exploration | -11 -10 -9 -9 -8 -7 ------------- Run | Scr Mat Mat Min Mat Fac Turns Passed 3578 | 64 191 280 665 500 1878 Spaces Moved 1881 | 46 122 138 368 287 920 Core 14 | 13 . . 1 . . Treads 624 | . . . . . 624 Legs 1030 | 33 122 138 367 287 83 Wheels 213 | . . . . . 213 Hover . | . . . . . . Flight . | . . . . . . Fastest Speed 50 | 50 120 120 120 120 130 Average Speed 160 | 108 120 137 141 148 183 Slowest Speed 500 | 150 120 150 500 180 250 Overloaded Moves . | . . . . . . Propulsion Burnouts . | . . . . . . Robots Hopped . | . . . . . . Cave-ins Triggered . | . . . . . . Exploration Rate (%) 29 | 3 18 20 77 28 29 Regions Visited 5 Branch Regions 1 Pre-discovered Areas 1 | . . . 1 . . Known Exits Taken 4 | . 1 1 1 1 . Unknown Exits Taken 1 | 1 . . . . . Scrap Searched 1 | . . . 1 . . Spaces Dug . | . . . . . . Terrain Destroyed 159 | . . . 16 80 63 Melee . | . . . . . . Projectile 6 | . . . . . 6 AOE 153 | . . . 16 80 57 Actions | -11 -10 -9 -9 -8 -7 --------- Run | Scr Mat Mat Min Mat Fac Total 2248 | 60 154 199 445 342 1048 Wait 77 | 3 . 36 17 5 16 Move 1876 | 45 121 137 367 286 920 Hop . | . . . . . . Pick Up 83 | 7 12 4 13 18 29 Fast Attach 13 | . . 1 . 3 9 Attach 30 | 5 5 1 7 7 5 Detach . | . . . . . . Swap 17 | . . 2 3 3 9 Drop 49 | . 8 3 3 9 26 Fire 103 | . 8 15 35 11 34 Melee . | . . . . . . Ram . | . . . . . . Kick . | . . . . . . Crush . | . . . . . . Escape Stasis . | . . . . . . Rewire . | . . . . . . Trap . | . . . . . . Miscellaneous . | . . . . . . Route ------- -11/Scrapyard -10/Materials -9/Materials -9/Mines (discovered 2 exits: *Mat x2) -8/Materials (discovered 2 exits: *Fac x2) -7/Factory (discovered 3 exits: [*Fac] / [*Low x2]) History --------- Turn | Location | Event 8 | -11/Scrapyard | Discovered new exit (range 15) 65 | -11/Scrapyard | Entered Materials 212 | -10/Materials | Discovered new exit (range 15) 254 | -10/Materials | Identified exit to Materials 256 | -10/Materials | Entered another Materials area 256 | -9/Materials | Evolved 2 slots: Propulsion x2 307 | -9/Materials | Build established: Mutant 438 | -9/Materials | Discovered new exit (range 16) 535 | -9/Materials | Identified exit to Mines 536 | -9/Materials | Entered Mines 545 | -9/Mines | Escorted by a lone wolf Derelict 565 | -9/Mines | Learned location of Storage (-8) 574 | -9/Mines | Met a Derelict bent on vengeance 887 | -9/Mines | Discovered new exit (range 7) 899 | -9/Mines | Identified exit to Materials 984 | -9/Mines | Lost 3 parts (2n1w) 1069 | -9/Mines | Lost 3 parts (1p2n) 1072 | -9/Mines | Learned location of 1 exit from Materials 1078 | -9/Mines | Discovered exit to Materials (range 14) 1109 | -9/Mines | Received a Rocket Launcher from a helpful Derelict 1167 | -9/Mines | Excavation squad dispatched 1167 | -9/Mines | A large section of the Mines collapsed 1200 | -9/Mines | Core integrity fell below 50% 1201 | -9/Mines | Entered Materials 1201 | -8/Materials | Evolved 2 slots: Utility x2 1202 | -8/Materials | Identified exit to Factory 1225 | -8/Materials | Lost 4 parts (1p2n1w) 1673 | -8/Materials | Discovered exit to Factory (range 16) 1701 | -8/Materials | Entered Factory 1701 | -7/Factory | Evolved 2 slots: Utility x2 2288 | -7/Factory | Build established: Hauler-Mutant 3087 | -7/Factory | Discovered new exit (range 14) 3227 | -7/Factory | Discovered new exit (range 5) 3572 | -7/Factory | Discovered new exit (range 21) 3579 | -7/Factory | Self-destructed Last Messages --------------- 03540_ K-01 Serf collects debris. 03541_ U-05 Engineer lays Concrete. 03541_ K-01 Serf collects debris. 03542_ U-05 Engineer lays Concrete. 03542_ R-06 Scavenger inserts Imp. Sensor Array into recycling unit. 03543_ U-05 Engineer lays Concrete. 03545_ K-01 Serf collects debris. 03545_ U-05 Engineer lays Concrete. 03545_ K-01 Serf collects debris. 03546_ U-05 Engineer lays Concrete. 03548_ K-01 Serf collects debris. 03549_ U-05 Engineer lays Concrete. 03552_ K-01 Serf collects debris. 03553_ U-05 Engineer lays Concrete. 03555_ K-01 Serf collects debris. 03555_ U-05 Engineer lays Concrete. 03556_ U-05 Engineer builds a Wall. 03557_ K-01 Serf collects debris. 03572_ EXIT=FOUND 03578_ Arm. Treads destroyed. Map ----- +----------------------------------------------------+ | ??????????????????????????????????## """" #?#?# | | ??????????????????????????????????# """" ##### | | ??????????????????????????????????# """" | | ??????????????????????????????????# | | ??????????????????????????????????# | | ??????????????????????????????????# | | ??????????????????????????????????############ | | ????????????????+###########??################ | | ????????????? ?? | | ?????????????? ?? | | ?????????????? < ??? """ | | ??????????????? ????? "G" | | ???????????????? ????? ] " " | | ???????????????? s s #???????# | | ????????????????? #???????# | | ??????????????????s #???????# | | ??????????????????? #???????# | | ??????????????????? #???????# u | | ???????????????????? s #???????# | | ????????????????????? #?????### | | ?????????????????????# #?????# " | | ?????????????????????# #?????# k | | ?????????????????????# #?????# u # | | ?????????????????????# #?????# / | | ?????????????????????# #????## # | | ?????????????????????# @ #????# " # | | ?????????????????????# #????## " # | | ?????????????????????# #?????# " # | | ?????????????????????# p########" u u ## | | ?????????????????????#g # | | ??????????????????"" + + | | ??????????????? # # | | ???????????? """ # k #= | | ????????? """?# a " | | ????????? " F" ""??## ############+##### #! | | ????????????"" ????# ?????????? ??# #? | | ???????????????? ????# ???????? # #? | | ????????????????#?????# ?????? !# #? | | ??????????????????????# ????# # #? | | ??????????????????????# ????# """ """ # #? | | ??????????????????????# ????+ """ """ # #? | | ??????????????????????# ????# """ """ # #? | | ??????????????????????# ????# # #? | | ??????????????????????# ????# """ """ # #? | | ??????????????????????# ?????# """ """ # #? | | ??????????????????????# ?????# """ """ # #? | | ??????????????????????? ????????? ??? # #? | | ?????????????????????????????????#????##### #? | | ??????????????????????????????????????????# #? | | ??????????????????????????????????????????? #? | +----------------------------------------------------+ Best States ------------- Heat Dissipation 48 Energy Generation 17 Energy Capacity 300 Matter Stores 300 Matter Capacity 300 Sight Range 22 Robot Scan Range 20 Terrain Scan Density 10 ECM Strength 2 Evasion (%) 40 Targeting Accuracy 16 Recoil Reduction 3 Item Schematics ----------------- None Robot Schematics ------------------ None Fabricated ------------ Nothing Alien Tech Used ----------------- None Achievements -------------- None Challenges ------------ None Game ------ Seed MetafieldRiotStreamer Manual? 0 Play Time 00:31:24 Cumulative 65.1 hours Start 2019.10.30 @ 12:12:06 End 2019.10.30 @ 12:42:16 Sessions 1 Manual Loads 0 Difficulty Rogue Special Mode None Game No. 101 Rogue 101 Adventurer 0 Explorer 0 Win Type - Total 0 Types 0/0/0/0/0/0/0 Lore% 27 Gallery% 39 Achievement% 29 Wizard Run 0 Options --------- ASCII 0 Keyboard 0 Movement Mouse Keybinds 0 Fullscreen 1 Font 18/SmallcapsGlow Map View 76x50 Tactical HUD 1 Map Filters NONE Filters NONE Steam 1 RUN: e524d195-3587-48ee-8081-ba08911c028f